bitfinex-derivatives/quotes_ETHF0:USTF0_20250927
["timestamp","ask_amount","ask_price","bid_price","bid_amount"]
[1758983445292,3.57575321,4019.6,4019.5,0.7529]
[1758983446786,3.57575321,4019.6,4019.5,0.5441]
[1758983446985,1.19717,4019.3,4019.2,0.7941]
[1758983447186,1.69578321,4019.3,4019.2,1.24168]
[1758983448092,1.69578321,4019.3,4019.2,1.45048]
[1758983449183,1.37078321,4019.3,4019.2,1.45048]
[1758983449388,1.69578321,4019.3,4019.2,1.45048]
[1758983449687,1.69578321,4019.3,4019.2,1.20048]
[1758983452593,0.49861321,4019.3,4019.2,1.20048]
[1758983452799,0.5318,4019.6,4019.5,1.32595]
[1758983452995,0.70648399,4019.6,4019.5,1.32595]
[1758983453197,0.49968399,4019.6,4019.5,1.32595]
[1758983460502,1.03998399,4019.6,4019.5,1.32595]
[1758983461600,0.71718399,4019.6,4019.5,1.32595]
[1758983461789,0.49968399,4019.6,4019.5,1.32595]
[1758983463304,0.49968399,4019.6,4019.5,1.57595]
[1758983465608,1.03998399,4019.6,4019.5,1.57595]
[1758983466506,0.71718399,4019.6,4019.5,1.57595]
[1758983467507,0.49968399,4019.6,4019.5,1.57595]
[1758983473610,0.49968399,4019.6,4019.5,3.00995449]
[1758983475501,0.7527,4020.5,4020.4,1.21835]
[1758983475701,0.5387,4020.5,4020.4,1.46835]
[1758983475898,0.7527,4020.5,4020.4,1.46835]
[1758983481315,0.7527,4020.5,4020.4,1.21835]
[1758983481514,0.7527,4020.5,4020.4,1.46835]
[1758983482112,0.8772,4020.5,4020.4,0.69745]
[1758983482511,0.8772,4020.5,4020.4,1.03515]
[1758983483015,0.8772,4020.5,4020.4,1.25025]
[1758983484310,0.7527,4020.5,4020.4,1.25025]
[1758983487413,1.24960614,4020.5,4020.4,1.22555]
[1758983487619,1.24960614,4020.5,4020.4,1.47455]
[1758983493023,1.24960614,4020.5,4020.4,1.22555]
[1758983493220,1.24960614,4020.5,4020.4,1.47455]
[1758983494527,1.24960614,4020.5,4020.4,1.22555]
[1758983494723,1.24960614,4020.5,4020.4,1.47455]
[1758983495527,1.24960614,4020.5,4020.4,1.22555]
[1758983495724,1.24960614,4020.5,4020.4,1.47455]
[1758983496921,0.7527,4020.5,4020.4,1.47455]
[1758983497127,1.24947565,4020.5,4020.4,1.47455]
[1758983498728,1.24947565,4020.5,4020.4,1.22555]
[1758983498928,1.24947565,4020.5,4020.4,1.47455]
[1758983501332,1.24947565,4020.5,4020.4,1.22555]
[1758983501533,1.24947565,4020.5,4020.4,1.47455]
[1758983503431,1.69691565,4020.5,4020.4,1.47455]
[1758983504823,1.20014,4020.5,4020.4,1.47455]
[1758983505028,1.6977628,4020.5,4020.4,1.47455]
[1758983509036,1.6977628,4020.5,4020.4,1.22555]
[1758983509234,1.6977628,4020.5,4020.4,1.47455]
[1758983511040,1.2503228,4020.5,4020.4,1.47455]
[1758983511336,0.4976228,4020.5,4020.4,1.47455]
[1758983511934,0.4976228,4020.5,4020.4,6.47455]
[1758983513241,3.4207,4021.2,4021.1,0.88587]
[1758983513438,4.23316485,4021.2,4021.1,1.45947]
[1758983514042,4.89792485,4021.2,4021.1,1.45947]
[1758983514431,4.89792485,4021.2,4021.1,1.0121]
[1758983514640,0.5321,4020.9,4020.8,1.02099]
[1758983514842,1.24276485,4020.9,4020.8,1.02099]
[1758983515443,1.24276485,4020.9,4020.8,1.23769]
[1758983515843,1.69015485,4020.9,4020.8,1.23769]
[1758983516748,1.24276485,4020.9,4020.8,1.23769]
[1758983517340,1.24276485,4020.9,4020.8,1.45949]
[1758983517545,0.71066485,4020.9,4020.8,1.45949]
[1758983517741,0.49776485,4020.9,4020.8,1.45949]
[1758983518050,1.02536485,4020.9,4020.8,1.45949]
[1758983518945,1.24276485,4020.9,4020.8,1.45949]
[1758983521046,1.69015485,4020.9,4020.8,1.21049]
[1758983521246,1.69015485,4020.9,4020.8,1.23769]
[1758983521446,1.69015485,4020.9,4020.8,0.69639]
[1758983522346,1.24276485,4020.9,4020.8,0.69639]
[1758983523050,1.24276485,4020.9,4020.8,1.23769]
[1758983523751,1.24276485,4020.9,4020.8,1.45949]
[1758983523951,0.49776485,4020.9,4020.8,1.45949]
[1758983528454,0.70546485,4020.9,4020.8,1.45949]
[1758983528650,1.24416485,4020.9,4020.8,1.45949]
[1758983530450,1.24416485,4020.9,4020.8,1.21049]
[1758983530649,1.24416485,4020.9,4020.8,1.45949]
[1758983536250,0.49776485,4020.9,4020.8,1.45949]
[1758983539151,0.49776485,4020.9,4020.8,1.21049]
[1758983539350,0.49776485,4020.9,4020.8,1.45949]
[1758983543356,0.00321408,4021.3,4021.2,1.20416]
[1758983543562,0.00321408,4021.3,4021.2,1.45316]
[1758983544159,4.08e-06,4021.3,4021.2,8.2389283]
[1758983544456,0.5346,4022.4,4022.3,0.88764]
[1758983544658,0.5346,4022.4,4022.3,1.20404]
[1758983544659,0.7482,4022.4,4022.3,1.20404]
[1758983545456,0.75066314,4022.4,4022.3,1.20641998]
[1758983559569,0.00246314,4022.4,4022.3,1.20641998]
[1758983560075,0.00246314,4022.4,4022.3,4.41421998]
[1758983572090,0.00246314,4022.4,4022.3,4.66321998]
[1758983574292,0.49595868,4022.4,4022.3,4.66321998]
[1758983578395,0.49595868,4022.4,4022.3,4.41421998]
[1758983578600,0.49595868,4022.4,4022.3,4.66321998]
[1758983579496,1.24685868,4022.4,4022.3,1.20641998]
[1758983579703,1.24685868,4022.4,4022.3,1.45541998]
[1758983581197,1.24685868,4022.4,4022.3,1.20641998]
[1758983581396,1.24685868,4022.4,4022.3,1.45541998]
[1758983586198,1.24685868,4022.4,4022.3,1.20641998]
[1758983586401,1.24685868,4022.4,4022.3,0.44961998]
[1758983587499,1.24685868,4022.4,4022.3,0.77331998]
[1758983588095,1.24685868,4022.4,4022.3,0.32607998]
[1758983588301,6.24685868,4022.4,4022.3,0.44960998]
[1758983589298,1.24685868,4022.4,4022.3,1.23080998]
[1758983589598,0.49595868,4022.4,4022.3,2.91130365]
[1758983589805,0.49595868,4022.4,4022.3,1.47980998]
[1758983590698,0.49595868,4022.4,4022.3,4.68760998]
[1758983593706,1.23565868,4022.4,4022.3,1.25860998]
[1758983593899,1.23565868,4022.4,4022.3,0.69860998]
[1758983594298,1.23565868,4022.4,4022.3,1.25860998]
[1758983595497,1.23565868,4022.4,4022.3,1.47980998]
[1758983596598,0.70585868,4022.4,4022.3,1.47980998]
[1758983597302,1.01635868,4022.4,4022.3,1.47980998]
[1758983601105,0.70585868,4022.4,4022.3,1.47980998]
[1758983601997,0.49595868,4022.4,4022.3,4.68760998]
[1758983603004,0.70585868,4022.4,4022.3,4.68760998]
[1758983604100,0.49595868,4022.4,4022.3,4.68760998]
[1758983604698,0.49573508,4022.4,4022.3,4.68760998]
[1758983605401,0.70023508,4022.4,4022.3,4.68760998]
[1758983609503,1.25593508,4022.4,4022.3,4.68760998]
[1758983610004,1.25593508,4022.4,4022.3,4.43860998]
[1758983610310,1.25593508,4022.4,4022.3,4.68860998]
[1758983611008,0.49573508,4022.4,4022.3,4.68860998]
[1758983611208,0.00246314,4022.4,4022.3,4.68860998]
[1758983612404,0.00246314,4022.4,4022.3,6.02932932]
[1758983612605,0.00246314,4022.4,4022.3,7.81264271]
[1758983613204,0.00246314,4022.4,4022.3,6.47192337]
[1758983614704,0.00246314,4022.4,4022.3,7.81264271]
[1758983616110,0.00246314,4022.4,4022.3,12.81264271]
[1758983617012,0.55832118,4022.4,4022.3,11.47192337]
[1758983619511,0.55832118,4022.4,4022.3,6.47192337]
[1758983621421,0.00246314,4022.4,4022.3,6.47192337]
[1758983625421,0.54136314,4022.4,4022.3,6.47192337]
[1758983626323,0.20696314,4022.4,4022.3,6.47192337]
[1758983627022,0.00246314,4022.4,4022.3,6.47192337]
[1758983632426,0.00246314,4022.4,4022.3,6.22192337]
[1758983632624,0.00246314,4022.4,4022.3,6.47092337]
[1758983633931,0.20696314,4022.4,4022.3,6.47092337]
[1758983634630,0.00246314,4022.4,4022.3,6.47092337]
[1758983638335,0.3287,4023.0,4022.9,0.44717]
[1758983638535,0.7588,4023.0,4022.9,1.46547]
[1758983638834,1.31222173,4023.0,4022.9,1.46547]
[1758983639231,1.10572173,4023.0,4022.9,1.46547]
[1758983639437,0.77965395,4023.0,4022.9,1.46547]
[1758983640332,1.31485395,4023.0,4022.9,1.46547]
[1758983640638,6.44585395,4023.0,4022.9,0.44717]
[1758983640845,0.4301,4022.8,4022.7,0.44719]
[1758983641140,0.7588,4021.9,4021.8,0.44729]
[1758983641326,1.31222173,4021.9,4021.8,0.69629]
[1758983641528,6.31222173,4021.9,4021.8,0.69629]
[1758983642136,6.31222173,4021.9,4021.8,0.69895087]
[1758983644838,6.31222173,4021.9,4021.8,0.44995087]
[1758983646740,0.4301,4021.4,4021.3,3.5368]
[1758983647035,0.7588,4021.4,4021.3,3.7868]
[1758983647241,1.31222173,4021.4,4021.3,4.23415]
[1758983647440,1.31222173,4021.4,4021.3,4.45635]
[1758983647743,1.31222173,4021.4,4021.3,4.20929501]
[1758983648142,0.7588,4021.4,4021.3,4.45929501]
[1758983649240,0.7588,4021.4,4021.3,4.20929501]
[1758983649443,0.7588,4021.4,4021.3,4.45929501]
[1758983650340,0.7588,4021.4,4021.3,4.67739501]
[1758983652850,0.7588,4021.4,4021.3,4.42739501]
[1758983653051,1.77140335,4021.4,4021.3,0.00294501]
[1758983654458,1.77140335,4021.4,4021.3,0.45029501]
[1758983654755,1.32406335,4021.4,4021.3,1.18929501]
[1758983655756,1.32374378,4021.4,4021.3,1.18929501]
[1758983661760,0.56494378,4021.4,4021.3,1.18929501]
[1758983662260,3.2078,4021.7,4021.6,1.18631]
[1758983662460,3.77295278,4021.7,4021.6,3.21962339]
[1758983663163,0.56515278,4021.7,4021.6,3.21962339]
[1758983663661,3.9704,4022.2,4022.1,1.19856]
[1758983663864,3.97946953,4022.2,4022.1,1.19856]
[1758983664062,4.31706953,4022.2,4022.1,1.19856]
[1758983664263,4.31706953,4022.2,4022.1,1.44856]
[1758983664450,4.53566953,4022.2,4022.1,1.44856]
[1758983665463,1.32786953,4022.2,4022.1,1.44856]
[1758983669760,0.2186,4021.6,4021.5,0.3211]
[1758983669958,1.32786953,4021.6,4021.5,0.3211]
[1758983670265,0.56526953,4021.6,4021.5,1.32673]
[1758983670460,0.2064,4021.9,4021.8,1.19859]
[1758983670660,1.11081073,4021.9,4021.8,1.19859]
[1758983670860,1.32941073,4021.9,4021.8,1.19859]
[1758983671566,1.77669073,4021.9,4021.8,0.44729]
[1758983671965,1.32941073,4021.9,4021.8,0.44729]
[1758983672869,1.32941073,4021.9,4021.8,0.76839]
[1758983673167,1.32941073,4021.9,4021.8,0.98389]
[1758983674862,1.32941073,4021.9,4021.8,0.44729]
[1758983677671,1.32941073,4021.9,4021.8,0.76839]
[1758983678262,1.32941073,4021.9,4021.8,0.98389]
[1758983680373,1.32941073,4021.9,4021.8,0.76839]
[1758983680570,1.32941073,4021.9,4021.8,0.44729]
[1758983680976,1.32941073,4021.9,4021.8,0.76839]
[1758983681678,1.77669073,4021.9,4021.8,0.98389]
[1758983682982,1.20991,4021.7,4021.6,0.44731]
[1758983683180,1.77672073,4021.7,4021.6,0.44731]
[1758983683878,1.20994,4021.4,4021.3,0.45028501]
[1758983684186,1.77675073,4021.4,4021.3,0.45028501]
[1758983684783,1.77675073,4021.4,4021.3,0.77138501]
[1758983685276,1.77675073,4021.4,4021.3,0.00294501]
[1758983685874,10.70675073,4021.4,4021.3,0.00294501]
[1758983686076,1.21002,4020.7,4020.6,0.25]
[1758983686381,0.8979,4020.5,4020.4,0.76854]
[1758983686578,0.2186,4020.2,4020.1,0.4302]
[1758983686784,1.32941073,4020.2,4020.1,1.19878]
[1758983686973,1.32941073,4020.2,4020.1,1.20148167]
[1758983688077,1.32941073,4020.2,4020.1,0.66568167]
[1758983688279,1.32941073,4020.2,4020.1,0.45018167]
[1758983689183,1.32941073,4020.2,4020.1,1.20148167]
[1758983689375,0.56681073,4020.2,4020.1,1.20148167]
[1758983689979,0.56681073,4020.2,4020.1,6.45148167]
[1758983690378,1.0126,4020.7,4020.6,1.19873]
[1758983690578,1.57704338,4020.7,4020.6,1.19873]
[1758983690981,1.23944338,4020.7,4020.6,1.19873]
[1758983691178,1.57704338,4020.7,4020.6,1.19873]
[1758983691377,3.00911508,4020.7,4020.1,0.32380167]
[1758983691578,1.8570717,4020.3,4020.2,0.3211]
[1758983691778,2.42151508,4020.3,4020.1,0.32380167]
[1758983691979,0.98944338,4020.2,4020.1,0.98678167]
[1758983692183,1.32704338,4020.2,4020.1,0.98678167]
[1758983694486,1.32704338,4020.2,4020.1,1.20148167]
[1758983700985,1.32704338,4020.2,4020.1,0.75400167]
[1758983701593,1.32704338,4020.2,4020.1,1.20148167]
[1758983702099,1.77451338,4020.2,4020.1,0.75400167]
[1758983702391,1.32704338,4020.2,4020.1,1.20148167]
[1758983702991,1.77451338,4020.2,4020.1,1.20148167]
[1758983703190,1.77451338,4020.2,4020.1,0.75400167]
[1758983703782,1.77451338,4020.2,4020.1,0.21820167]
[1758983703982,1.77451338,4020.2,4020.1,0.00270167]
[1758983705994,1.77451338,4020.2,4020.1,0.45018167]
[1758983706693,1.32704338,4020.2,4020.1,0.45018167]
[1758983706892,1.32704338,4020.2,4020.1,0.99048167]
[1758983707291,1.32704338,4020.2,4020.1,1.20408167]
[1758983709887,0.56444338,4020.2,4020.1,1.20408167]
[1758983710088,0.56444338,4020.2,4020.1,1.45408167]
[1758983717099,0.56444338,4020.2,4020.1,2.88615337]
[1758983717299,1.09214338,4020.2,4020.1,2.88615337]
[1758983718000,0.77424338,4020.2,4020.1,2.88615337]
[1758983721207,0.56444338,4020.2,4020.1,2.88615337]
[1758983734617,1.33234338,4020.2,4020.1,0.45018167]
[1758983734817,1.33234338,4020.2,4020.1,0.70018167]
[1758983735315,1.33234338,4020.2,4020.1,0.00270167]
[1758983735521,6.33234338,4020.2,4020.1,0.00270167]
[1758983735715,8.56576529,4020.2,4020.1,0.00270167]
[1758983736620,6.33234338,4020.2,4020.1,0.45018167]
[1758983737118,6.33234338,4020.2,4020.1,0.78738167]
[1758983737119,1.33234338,4020.2,4020.1,0.78738167]
[1758983737420,1.33234338,4020.2,4020.1,0.99578167]
[1758983740119,1.33234338,4020.2,4020.1,1.21838167]
[1758983740324,1.33234338,4020.2,4020.1,1.46838167]
[1758983740325,1.00324338,4020.2,4020.1,1.46838167]
[1758983741219,1.33234338,4020.2,4020.1,1.46838167]
[1758983742519,1.33234338,4020.2,4020.1,1.21838167]
[1758983760333,0.56444338,4020.2,4020.1,1.21838167]
[1758983760533,0.05786338,4020.2,4020.1,1.21838167]
[1758983760737,3.2078,4020.7,4020.6,1.18063]
[1758983761035,3.2078,4020.7,4020.6,1.43063]
[1758983761235,3.9531,4020.7,4020.6,1.43063]
[1758983762035,0.7453,4020.7,4020.6,1.43063]
[1758983766230,0.3171,4021.0,4020.7,0.44742]
[1758983766435,3.4164,4021.2,4021.1,0.44737]
[1758983766641,3.4164,4021.2,4021.1,1.18057]
[1758983766642,3.7335,4021.2,4021.1,1.18057]
[1758983767037,3.9531,4021.2,4021.1,1.18057]
[1758983767743,1.78470899,4021.6,4021.5,0.44733]
[1758983767939,0.2086,4021.6,4021.5,1.31413]
[1758983768139,3.2078,4021.7,4021.6,1.21252]
[1758983768339,3.4325,4021.7,4021.6,1.21252]
[1758983768546,0.5599,4021.7,4021.6,1.21252]
[1758983769143,0.7785,4021.7,4021.6,1.21252]
[1758983770142,0.7785,4021.7,4021.6,1.46252]
[1758983772647,1.33411133,4021.7,4021.6,1.46252]
[1758983780248,1.33411133,4021.7,4021.6,0.44732]
[1758983780551,0.7785,4021.2,4021.1,0.44737]
[1758983780750,1.33411133,4021.2,4021.1,0.44737]
[1758983781752,1.33411133,4021.2,4021.1,1.00237]
[1758983782655,1.33411133,4021.2,4021.1,1.21257]
[1758983785642,1.33411133,4021.2,4021.1,1.00237]
[1758983785843,0.78031133,4021.2,4021.1,1.46947]
[1758983786051,0.55561133,4021.2,4021.1,1.46947]
[1758983794066,0.03810133,4021.2,4021.1,6.46947]
[1758983794364,3.2078,4022.2,4022.1,0.89506]
[1758983794561,3.2078,4022.2,4022.1,1.46936]
[1758983794865,3.7722,4022.2,4022.1,1.46936]
[1758983795261,3.9857,4022.2,4022.1,0.25]
[1758983795562,0.7852,4021.8,4021.6,3.65512]
[1758983795763,0.7779,4021.7,4021.6,0.44732]
[1758983795964,0.7779,4021.7,4021.6,0.25]
[1758983796163,0.7779,4021.7,4021.5,0.44733]
[1758983796368,0.3379,4021.4,4021.0,5.8914723]
[1758983796569,0.7779,4021.4,4021.3,0.44735]
[1758983796868,0.7779,4021.4,4021.3,0.69735]
[1758983797371,0.7779,4021.4,4021.3,1.02165]
[1758983797870,0.7779,4021.4,4021.3,1.24355]
[1758983798069,0.2265,4021.4,4021.3,2.9009623]
[1758983798259,0.7779,4021.6,4021.5,0.99353]
[1758983798566,0.7779,4021.6,4021.5,0.91923]
[1758983798773,0.7779,4021.6,4021.5,0.69733]
[1758983801069,0.7779,4021.6,4021.5,0.44733]
[1758983802675,6.22522,4021.6,4021.5,0.44733]
[1758983802969,1.22527,4021.1,4021.0,0.44738]
[1758983803169,0.7779,4021.1,4021.0,0.44738]
[1758983803371,1.22527,4021.1,4021.0,0.44738]
[1758983806274,1.77817728,4021.1,4021.0,0.44738]
[1758983808267,1.33080728,4021.1,4021.0,1.35318]
[1758983808474,0.55290728,4021.1,4021.0,2.7846923]
[1758983809568,0.55290728,4021.1,4021.0,5.9924923]
[1758983816780,0.55290728,4021.1,4021.0,10.9924923]
[1758983816973,3.2078,4021.7,4021.6,0.88202]
[1758983817169,1.7653123,4022.0,4021.9,0.88198]
[1758983817371,2.1051123,4022.0,4021.9,1.09188]
[1758983818379,2.3250123,4022.0,4021.9,0.88198]
[1758983820172,0.8935,4022.0,4021.9,1.09188]
[1758983822283,0.8935,4022.0,4021.9,0.88198]
[1758983827579,0.8935,4022.0,4021.9,1.09188]
[1758983828586,0.3338,4022.0,4021.9,1.09188]
[1758983829287,0.88302682,4022.0,4021.9,1.09188]
[1758983830180,1.21382682,4022.0,4021.9,1.09188]
[1758983831996,1.21382682,4022.0,4021.9,0.88198]
[1758983832697,1.43572682,4022.0,4021.9,0.88198]
[1758983839406,1.43572682,4022.0,4021.9,0.44728]
[1758983842409,1.43572682,4022.0,4021.9,0.69728]
[1758983847607,1.43572682,4022.0,4021.9,0.90388]
[1758983848607,1.43572682,4022.0,4021.9,1.33088]
[1758983848812,1.00792682,4022.0,4021.9,2.7623923]
[1758983850015,0.54922682,4022.0,4021.9,2.7623923]
[1758983850214,0.54922682,4022.0,4021.9,7.7623923]
[1758983850813,0.6831,4022.5,4022.4,1.08083]
[1758983851015,0.6831,4022.5,4022.4,5.9701423]
[1758983854508,0.4712,4022.5,4022.4,5.9701423]
[1758983854711,0.56693222,4023.0,4022.9,0.87067]
[1758983855315,0.90543222,4023.0,4022.9,0.87067]
[1758983857017,1.35259222,4023.0,4022.9,0.44717]
[1758983861219,0.88017,4022.9,4022.8,0.69717]
[1758983861517,1.21867,4022.9,4022.8,0.69717]
[1758983862419,0.7715,4022.9,4022.8,0.69717]
[1758983862621,1.30771702,4022.9,4022.8,0.69717]
[1758983863623,1.75488702,4022.9,4022.8,0.69717]
[1758983864725,1.30771702,4022.9,4022.8,0.69717]
[1758983864914,1.75488702,4022.9,4022.8,0.69717]
[1758983865716,1.75488702,4022.9,4022.4,3.2078]
[1758983865717,0.4691,4022.5,4022.4,3.2078]
[1758983865917,0.9021,4022.0,4021.9,3.65508]
[1758983866222,1.43831702,4022.0,4021.9,3.90508]
[1758983866422,1.43831702,4022.0,4021.9,4.11168]
[1758983866620,0.3385,4022.3,4022.2,0.44725]
[1758983866922,1.30778731,4022.3,4022.2,1.12075]
[1758983867616,0.1306,4022.0,4021.9,3.2078]
[1758983867816,0.1306,4022.0,4021.4,1.08094]
[1758983867817,0.681,4021.5,4021.4,1.08094]
[1758983868012,0.4691,4022.0,4021.9,1.08088]
[1758983868320,1.00546721,4022.0,4021.9,1.33188]
[1758983869123,1.21736721,4022.0,4021.9,1.33188]
[1758983870328,0.53636721,4022.0,4021.9,1.33188]
[1758983870823,0.3385,4022.0,4021.9,1.33188]
[1758983871324,0.3425,4022.5,4022.4,0.87073]
[1758983871526,1.09992831,4022.5,4022.4,0.87073]
[1758983871919,1.43842831,4022.5,4022.4,0.87073]
[1758983874927,1.21732831,4022.5,4022.4,1.08043]
[1758983878430,1.21732831,4022.5,4022.4,1.33143]
[1758983881735,1.00542831,4022.5,4022.4,1.33143]
[1758983882125,1.22032831,4022.5,4022.4,1.33143]
[1758983883138,1.42502831,4022.5,4022.4,0.87073]
[1758983883330,1.42502831,4022.5,4022.4,1.12173]
[1758983886336,1.42502831,4022.5,4022.4,1.33143]
[1758983886833,0.87482831,4022.5,4022.4,1.33143]
[1758983887139,0.3232,4022.7,4022.6,0.4472]
[1758983887326,0.85976942,4022.7,4022.6,6.328297]
[1758983888628,2.22e-06,4023.0,4022.9,0.87957]
[1758983888830,3.5557,4024.0,4023.9,0.87946]
[1758983889030,4.30816448,4024.0,4023.9,0.91496]
[1758983889226,4.62406448,4024.0,4023.9,0.91496]
[1758983889736,4.6265096,4024.0,4023.9,0.91680314]
[1758983890034,4.6265096,4024.0,4023.9,0.44890314]
[1758983890239,11.8570566,4024.0,4023.9,0.00184314]
[1758983890932,0.4347,4023.1,4023.0,3.2078]
[1758983891237,0.7506,4023.1,4023.0,3.74096]
[1758983891439,0.7506,4023.1,4023.0,3.95786]
[1758983891939,0.7506,4023.1,4023.0,3.96044057]
[1758983892141,0.7506,4023.1,4023.0,3.74354057]
[1758983892733,0.7506,4023.1,4023.0,3.21038057]
[1758983892933,0.7506,4023.1,4023.0,3.90854057]
[1758983893330,1.7319036,4023.1,4023.0,3.46138057]
[1758983893537,1.2847536,4023.1,4023.0,3.90854057]
[1758983893837,1.7319036,4023.1,4023.0,3.46138057]
[1758983894039,1.7319036,4023.1,4023.0,3.21038057]
[1758983894234,3.5154006,4023.1,4023.0,0.25358057]
[1758983895240,0.7506,4022.6,4022.5,3.2078]
[1758983895440,0.2174,4022.3,4022.2,0.251]
[1758983895639,0.7506,4022.3,4022.2,0.69825]
[1758983895943,1.2849098,4022.3,4022.2,0.69825]
[1758983896241,1.2849098,4022.3,4022.2,0.7002295]
[1758983896839,8.5156468,4022.3,4022.2,0.0019795]
[1758983898736,6.7321498,4022.3,4022.2,0.0019795]
[1758983900938,6.7321498,4022.3,4022.2,0.4492295]
[1758983901848,6.2849098,4022.3,4022.2,0.4492295]
[1758983902342,1.2849098,4022.3,4022.2,0.6661295]
[1758983902739,1.2849098,4022.3,4022.2,1.0921295]
[1758983903246,1.2849098,4022.3,4022.2,0.8816295]
[1758983906349,1.2849098,4022.3,4022.2,0.6661295]
[1758983907248,1.2849098,4022.3,4022.2,0.9171295]
[1758983911847,1.7321498,4022.3,4022.2,0.2529795]
[1758983912555,1.7321498,4022.3,4022.2,0.7002295]
[1758983913055,1.2849098,4022.3,4022.2,0.7002295]
[1758983914454,1.7321498,4022.3,4022.2,0.7002295]
[1758983914756,1.2849098,4022.3,4022.2,0.7002295]
[1758983916251,1.2849098,4022.3,4022.2,1.1342295]
[1758983916556,1.2849098,4022.3,4022.2,1.3460295]
[1758983916745,1.2849098,4022.3,4022.2,1.1342295]
[1758983917649,1.2849098,4022.3,4022.2,1.3460295]
[1758983917960,0.8502098,4022.3,4022.2,1.3460295]
[1758983918859,1.0549098,4022.3,4022.2,1.3460295]
[1758983919266,1.2614098,4022.3,4022.2,1.1342295]
[1758983919952,1.2614098,4022.3,4022.2,0.7002295]
[1758983928267,1.2614098,4022.3,4022.2,0.9212295]
[1758983928470,0.8502098,4022.3,4022.2,2.77757785]
[1758983929064,0.5343098,4022.3,4022.2,2.77757785]
[1758983929864,0.5343098,4022.3,4022.2,7.77757785]
[1758983930058,0.3276,4022.6,4022.5,1.09301]
[1758983930259,0.86346607,4022.6,4022.5,5.98335835]
[1758983931265,1.06816607,4022.6,4022.5,5.98335835]
[1758983935865,1.27466607,4022.6,4022.5,4.34001]
[1758983938476,1.27466607,4022.6,4022.5,3.65501]
[1758983938876,1.27466607,4022.6,4022.5,3.87191]
[1758983939770,1.27466607,4022.6,4022.5,4.08941]
[1758983939971,0.86346607,4022.6,4022.5,4.30111]
[1758983941079,1.08056607,4022.6,4022.5,4.30111]
[1758983941377,1.08056607,4022.6,4022.5,3.90601]
[1758983941378,1.29806607,4022.6,4022.5,3.90601]
[1758983941575,6.29806607,4022.6,4022.5,3.2078]
[1758983941877,6.29806607,4022.6,4022.5,3.65501]
[1758983948583,1.29806607,4022.6,4022.5,4.29911]
[1758983948881,1.29806607,4022.6,4022.5,4.08761]
[1758983952183,1.29806607,4022.6,4022.5,3.02062894]
[1758983952184,6.74526607,4022.6,4022.5,3.02062894]
[1758983952488,6.74526607,4022.6,4021.2,0.87996]
[1758983952489,0.7596,4021.3,4021.2,0.87996]
[1758983952692,0.53586607,4021.3,4021.2,2.77400835]
[1758983953379,3.5322,4021.8,4021.7,1.0914]
[1758983953582,4.06698536,4021.8,4021.7,1.3424]
[1758983954687,4.27608536,4021.8,4021.7,1.3424]
[1758983956897,5.93373371,4021.8,4021.7,0.6572]
[1758983957191,5.93373371,4021.8,4021.7,0.8799]
[1758983960889,0.53478536,4021.8,4021.7,1.0914]
[1758983961090,0.3244,4022.1,4022.0,1.09137]
[1758983961294,0.3244,4022.1,4022.0,1.34237]
[1758983961490,0.5335,4022.1,4022.0,1.34237]
[1758983963584,0.1339,4022.5,4022.4,0.44723]
[1758983963788,0.6768,4022.5,4022.4,1.34453]
[1758983966293,0.4662,4022.5,4022.4,1.34453]
[1758983970899,0.3323,4022.5,4022.4,1.34453]
[1758983971999,0.5429,4022.9,4022.8,1.09348]
[1758983972201,0.5429,4022.9,4022.8,1.34448]
[1758983972698,3.2078,4023.4,4022.8,1.09350023]
[1758983973001,0.7642,4023.4,4023.3,4.09083]
[1758983973195,0.7642,4023.4,4023.3,4.55223]
[1758983974196,0.7642,4023.4,4023.3,4.34183]
[1758983977697,0.5429,4023.4,4023.3,4.55223]
[1758983980605,0.7642,4023.4,4023.3,4.34183]
[1758983982105,0.7642,4023.4,4023.3,1.13403]
[1758983985807,0.7642,4023.4,4023.3,1.34443]
[1758983986410,0.7642,4023.4,4023.3,1.13403]
[1758983988810,0.3323,4023.4,4023.3,1.34443]
[1758983989614,0.90054512,4024.0,4023.9,0.88296]
[1758983989808,1.42967918,4024.0,4023.9,0.88296]
[1758983990115,3.5401,4024.4,4024.3,1.09331]
[1758983990310,3.7507,4024.4,4024.3,1.34331]
[1758983990711,3.7507,4024.4,4024.3,1.13291]
[1758983991216,3.97401911,4024.4,4024.3,1.13517251]
[1758983991914,0.76621911,4024.4,4024.3,1.13517251]
[1758983992710,0.54491911,4024.4,4024.3,1.34557251]
[1758983993115,0.54491911,4024.4,4024.3,1.13517251]
[1758983993311,0.75251911,4024.4,4024.3,1.13517251]
[1758983993715,0.75861911,4024.4,4024.3,1.13517251]
[1758983997622,0.1253,4025.0,4024.9,0.2075]
[1758983997829,0.8879,4025.0,4024.9,0.90545]
[1758983998122,0.8879,4025.0,4024.9,1.10442459]
[1758983998417,0.6803,4025.0,4024.9,1.53902459]
[1758983998622,0.68290262,4025.0,4024.9,1.53902459]
[1758983999125,0.68290262,4025.0,4024.9,1.34005]
[1758983999718,0.68290262,4025.0,4024.9,1.12855]
[1758984000428,0.89050262,4025.0,4024.9,1.12855]
[1758984000622,2.67351368,4025.0,4024.9,0.44695]
[1758984001015,0.1253,4024.5,4024.2,3.2078]
[1758984001221,0.7626,4024.4,4024.3,0.44927251]
[1758984001524,0.7626,4024.4,4024.3,0.70027251]
[1758984001720,0.7626,4024.4,4024.3,0.44927251]
[1758984001922,1.2912432,4024.4,4024.3,0.70027251]
[1758984002323,1.2912432,4024.4,4024.3,0.90777251]
[1758984004132,0.555,4024.4,4024.3,1.34237251]
[1758984004327,0.555,4024.4,4024.3,1.13087251]
[1758984004637,0.7626,4024.4,4024.3,1.13087251]
[1758984005035,1.29133261,4024.4,4024.3,0.70027251]
[1758984005823,12.39134367,4024.4,4024.3,0.00226251]
[1758984006028,0.7626,4023.9,4023.8,0.69807]
[1758984006935,0.7626,4023.9,4023.8,0.70102575]
[1758984007730,1.29177845,4023.9,4023.8,0.70102575]
[1758984007929,1.29177845,4023.9,4023.8,0.45002575]
[1758984015541,1.29213007,4023.9,4023.8,0.45002575]
[1758984016437,1.29213007,4023.9,4023.8,0.00295575]
[1758984016740,1.29213007,4023.9,4023.8,0.45002575]
[1758984019240,0.86783007,4023.9,4023.8,1.07812575]
[1758984019535,0.86783007,4023.9,4023.8,2.86113681]